bitfinex/quotes_ETHUSD_20250324
["timestamp","ask_amount","ask_price","bid_price","bid_amount"]
[1742801150335,8.56627,2077.2,2076.7,0.8281]
[1742801150336,4.81472,2077.0,2076.7,0.8281]
[1742801150669,4.81472,2077.0,2076.8,0.10037185]
[1742801154651,4.34902,2077.0,2076.8,0.10037185]
[1742801156270,4.81486,2076.9,2076.8,0.10037185]
[1742801156473,4.81469,2077.0,2076.8,0.10037185]
[1742801156675,4.667,2077.1,2076.9,4.81472]
[1742801156873,4.667,2077.1,2076.9,5.94528744]
[1742801158085,4.81411,2077.3,2076.9,5.94528744]
[1742801158389,12.48011,2077.3,2077.0,5.56762]
[1742801158877,12.48011,2077.3,2077.1,0.09226444]
[1742801159178,4.666,2077.4,2077.1,4.90656444]
[1742801159384,14.29319,2077.5,2077.1,6.05781818]
[1742801159557,4.935276,2077.9,2077.4,4.81354]
[1742801159741,4.666,2077.6,2077.3,4.81394]
[1742801160097,4.666,2077.6,2077.4,0.09226444]
[1742801160098,9.47931,2077.6,2077.4,0.09226444]
[1742801160270,4.81347,2077.5,2077.4,0.09226444]
[1742801160475,4.81347,2077.5,2077.2,0.753]
[1742801160673,4.81347,2077.5,2077.4,0.09226444]
[1742801160872,9.47931,2077.6,2077.2,6.72041337]
[1742801163753,4.81347,2077.5,2077.2,0.753]
[1742801163969,4.81347,2077.5,2077.3,0.09226444]
[1742801164197,0.8309,2077.6,2077.3,0.09226444]
[1742801164198,4.81328,2077.6,2077.3,0.09226444]
[1742801164502,4.81328,2077.6,2077.4,0.09226444]
[1742801165123,4.81328,2077.6,2077.5,0.09226444]
[1742801165502,4.81328,2077.6,2077.2,5.56716]
[1742801165791,4.81328,2077.6,2077.5,0.09226444]
[1742801166294,4.81328,2077.6,2077.2,5.56716]
[1742801166506,4.81328,2077.6,2077.5,0.09226444]
[1742801167009,4.81328,2077.6,2077.2,5.56708]
[1742801167314,4.81328,2077.6,2077.3,0.09226444]
[1742801167666,4.81328,2077.6,2077.2,5.56708]
[1742801167961,4.81328,2077.6,2077.3,0.09226444]
[1742801168362,4.81328,2077.6,2077.2,6.660227]
[1742801168609,4.81328,2077.6,2077.4,0.09226444]
[1742801168783,4.81328,2077.6,2077.5,0.09226444]
[1742801169401,4.81328,2077.6,2077.2,11.474237]
[1742801169569,9.47906,2077.7,2077.3,5.9613337]
[1742801169911,9.47906,2077.7,2077.4,0.756]
[1742801170300,14.29229,2077.7,2077.4,0.756]
[1742801170475,14.29229,2077.7,2077.5,0.09226444]
[1742801170675,4.81324,2077.6,2077.5,0.09226444]
[1742801171533,4.81324,2077.6,2077.4,0.756]
[1742801171835,4.81306,2077.7,2077.4,0.756]
[1742801172034,7.935216,2077.9,2077.4,0.756]
[1742801172035,0.122526,2077.9,2077.5,1.306]
[1742801172328,0.122526,2077.9,2077.8,5.56878]
[1742801173208,0.122526,2077.9,2077.8,0.756]
[1742801173409,0.122526,2077.9,2077.8,5.56878]
[1742801174013,0.122526,2077.9,2077.8,0.756]
[1742801174225,0.122526,2077.9,2077.8,1.31289]
[1742801174809,0.122526,2077.9,2077.8,6.12567]
[1742801175021,0.122526,2077.9,2077.8,1.31289]
[1742801175410,0.122526,2077.9,2077.8,0.756]
[1742801176020,0.122526,2077.9,2077.6,5.56913]
[1742801176599,0.122526,2077.9,2077.7,4.81291]
[1742801177296,4.81289,2077.8,2077.1,0.756]
[1742801177526,4.81289,2077.8,2077.4,4.8137]
[1742801177527,9.6258,2077.8,2077.4,4.8137]
[1742801177726,9.6258,2077.8,2077.3,4.81387]
[1742801177727,4.81307,2077.7,2077.3,4.81387]
[1742801177914,4.8134,2077.6,2077.3,1.038391]
[1742801178227,4.81357,2077.5,2077.1,5.57027]
[1742801179310,4.81403,2077.3,2076.9,4.81474]
[1742801179502,9.62817,2077.3,2076.9,0.756]
[1742801179738,4.81403,2077.3,2077.0,0.5571]
[1742801180237,4.664,2077.7,2077.3,0.756]
[1742801180444,3.0,2077.8,2077.4,4.81354]
[1742801180735,3.0,2077.8,2077.5,4.81345]
[1742801181542,3.0,2077.8,2077.6,0.8143]
[1742801181732,9.598136,2077.9,2077.6,0.8143]
[1742801181937,9.598136,2077.9,2077.6,5.62752]
[1742801182139,4.785526,2077.9,2077.6,6.671652]
[1742801182312,4.785526,2077.9,2077.6,1.858432]
[1742801182519,9.598196,2077.9,2077.6,1.858432]
[1742801182926,9.598196,2077.9,2077.5,4.81333]
[1742801183114,4.81281,2077.8,2077.5,4.81333]
[1742801184137,0.122526,2077.9,2077.6,4.81314]
[1742801184541,4.935076,2077.9,2077.5,5.36341]
[1742801184727,4.81288,2077.8,2077.5,0.55]
[1742801184933,7.935166,2077.9,2077.5,5.36345]
[1742801185410,12.747906,2077.9,2077.5,5.36345]
[1742801185606,7.935166,2077.9,2077.5,5.36345]
[1742801186417,7.935166,2077.9,2077.5,6.462595]
[1742801188045,7.935166,2077.9,2077.4,5.62791]
[1742801188219,4.81324,2077.7,2077.2,5.62831]
[1742801188420,9.62638,2077.7,2077.2,10.44237]
[1742801188617,4.81328,2077.6,2077.2,0.8143]
[1742801188832,4.81372,2077.4,2077.1,0.8143]
[1742801189449,9.47637,2077.6,2077.1,6.672918]
[1742801189760,14.28977,2077.6,2077.1,6.672918]
[1742801190060,14.28977,2077.6,2077.1,6.72105697]
[1742801190555,9.47636,2077.6,2077.1,11.487138]
[1742801190732,7.663,2077.6,2077.5,4.81347]
[1742801191241,7.663,2077.6,2077.4,5.62793]
[1742801191640,7.663,2077.6,2077.4,0.8143]
[1742801191839,4.663,2077.6,2077.4,6.727097]
[1742801192748,4.663,2077.6,2077.4,1.913507]
[1742801192923,4.663,2077.6,2077.2,0.8143]
[1742801192924,4.81347,2077.5,2077.2,0.8143]
[1742801193119,4.81371,2077.4,2077.0,4.81463]
[1742801193320,4.81396,2077.3,2077.0,0.8143]
[1742801193539,4.81396,2077.3,2077.0,1.762063]
[1742801193733,4.81348,2077.5,2077.0,6.576693]
[1742801193944,3.0,2077.5,2077.1,4.81425]
[1742801194152,7.81364,2077.5,2077.1,4.81425]
[1742801194450,4.81364,2077.5,2077.1,5.9533453]
[1742801195724,9.62734,2077.5,2077.1,5.9533453]
[1742801195922,9.62734,2077.5,2077.0,1.762063]
[1742801195923,4.81372,2077.4,2077.0,6.576583]
[1742801196653,4.81417,2077.2,2076.8,0.8252]
[1742801196827,4.81473,2077.0,2076.6,0.8252]
[1742801197029,4.81511,2076.8,2076.4,5.6411]
[1742801197863,4.81463,2077.0,2076.5,4.81561]
[1742801198154,4.81464,2077.0,2076.6,5.379521]
[1742801198460,4.81464,2077.0,2076.6,10.194971]
[1742801198657,4.81464,2077.0,2076.6,5.379521]
[1742801198854,4.81464,2077.0,2076.7,0.8252]
[1742801199648,4.81464,2077.0,2076.3,0.55]
[1742801199649,4.81497,2076.9,2076.5,5.64094]
[1742801199846,4.81518,2076.8,2076.5,1.444294]
[1742801200022,4.81518,2076.8,2076.0,29.615]
[1742801200023,4.81597,2076.5,2076.1,0.8252]
[1742801200231,4.81615,2076.4,2076.1,0.8252]
[1742801201242,4.81628,2076.3,2075.9,5.64218]
[1742801201560,4.81628,2076.3,2075.9,6.688154]
[1742801202362,4.81653,2076.2,2075.9,1.871174]
[1742801202569,9.63197,2076.5,2076.0,4.81679]
[1742801202868,9.63197,2076.5,2076.0,6.2672914]
[1742801203159,9.63185,2076.5,2076.0,6.2672914]
[1742801203668,5.60383,2076.6,2076.1,4.81669]
[1742801203877,5.60383,2076.6,2076.1,9.63338]
[1742801204067,9.63143,2076.6,2076.2,5.64168]
[1742801204250,9.63143,2076.6,2076.2,6.35089814]
[1742801204579,9.63143,2076.6,2076.2,1.53441814]
[1742801204978,4.81581,2076.5,2076.2,1.53441814]
[1742801205762,4.81603,2076.4,2076.0,6.2673514]
[1742801205955,5.60413,2076.4,2076.0,1.4505014]
[1742801206333,4.81635,2076.3,2076.0,1.4505014]
[1742801207056,4.81654,2076.2,2075.8,7.81739]
[1742801207256,4.81654,2076.2,2075.7,0.8252]
[1742801207257,4.81654,2076.2,2075.7,5.64281]
[1742801207456,4.81654,2076.2,2075.7,5.6427]
[1742801207639,4.81654,2076.2,2075.8,4.8174]
[1742801207845,4.664,2076.3,2075.9,10.68006]
[1742801208065,4.664,2076.3,2076.0,5.64202]
[1742801208663,9.47992,2076.5,2076.0,5.64202]
[1742801208863,9.47992,2076.5,2076.0,10.45883]
[1742801209165,9.47992,2076.5,2076.1,4.81672]
[1742801210369,9.47992,2076.5,2076.0,5.64201]
[1742801210370,4.81605,2076.4,2076.0,4.81681]
[1742801210670,9.47992,2076.5,2076.0,10.784159]
[1742801210969,9.47992,2076.5,2076.1,4.81669]
[1742801211164,4.81605,2076.4,2076.0,5.967339]
[1742801211468,9.47992,2076.5,2076.0,10.784109]
[1742801211668,9.4799,2076.5,2076.0,10.784109]
[1742801211869,9.4799,2076.5,2076.1,6.0334438]
[1742801212042,4.664,2076.5,2076.1,6.0334438]
[1742801212547,9.47983,2076.5,2076.1,6.0334438]
[1742801214366,4.664,2076.5,2076.1,1.2167938]
[1742801214568,4.664,2076.6,2076.3,4.8161]
[1742801215175,7.81536,2076.7,2076.3,4.8161]
[1742801215864,12.63091,2076.7,2076.3,4.8161]
[1742801217184,4.81556,2076.6,2076.2,5.59823]
[1742801217982,4.81556,2076.6,2076.0,4.81695]
[1742801218187,4.81583,2076.5,2076.1,6.14848]
[1742801220082,4.81609,2076.4,2076.0,5.458273]
[1742801220255,4.81628,2076.3,2076.0,0.641323]
[1742801220456,4.81609,2076.4,2076.0,0.641323]
[1742801220655,4.81609,2076.4,2076.1,0.7286133]
[1742801220869,9.63234,2076.4,2076.0,4.81692]
[1742801221488,4.81609,2076.4,2076.0,4.81692]
[1742801221652,4.81662,2076.2,2075.9,1.82781]
[1742801221981,4.81675,2076.1,2075.7,5.59942]
[1742801222355,4.81675,2076.1,2075.7,0.7818]
[1742801222554,4.81718,2075.9,2075.6,4.81773]
[1742801222760,4.81718,2075.9,2075.5,0.7818]
[1742801222962,4.81752,2075.8,2075.4,5.59993]
[1742801223161,4.81752,2075.8,2075.5,1.04185]
[1742801226079,4.664,2076.0,2075.7,9.63487]
[1742801226480,3.7657,2076.1,2075.7,4.81758]
[1742801226788,3.7657,2076.1,2075.8,4.81741]
[1742801226988,3.0,2076.1,2075.8,1.018499]
[1742801227290,4.664,2076.2,2075.9,4.81703]
[1742801227496,4.664,2076.2,2076.0,4.81687]
[1742801227663,4.664,2076.2,2075.9,4.81717]
[1742801227863,4.664,2076.2,2075.9,5.9609779]
[1742801228490,9.48059,2076.2,2075.9,1.1438079]
[1742801228789,4.81673,2076.1,2075.8,4.81741]
[1742801229092,4.81673,2076.1,2075.8,0.55]
[1742801229289,4.81673,2076.1,2075.7,4.81758]
[1742801229470,4.81673,2076.1,2075.7,4.81753]
[1742801229670,4.81673,2076.1,2075.8,0.963535]
[1742801230213,4.664,2076.2,2075.9,4.81705]
[1742801231191,4.664,2076.2,2075.8,6.565945]
[1742801231422,9.48051,2076.2,2075.8,6.565945]
[1742801231617,4.664,2076.2,2075.9,4.81711]
[1742801232297,10.989473,2076.2,2075.7,4.81744]
[1742801232479,5.63104,2076.1,2075.7,4.81744]
[1742801232965,5.63092,2076.1,2075.7,4.81744]
[1742801234180,5.63092,2076.1,2075.6,5.62528]
[1742801234181,4.81697,2076.0,2075.6,5.62515]
[1742801234500,10.44783,2076.1,2075.7,4.81765]
[1742801235300,5.63092,2076.1,2075.7,4.81765]
[1742801235593,5.63092,2076.1,2075.7,9.63515]
[1742801235801,4.664,2076.2,2075.9,4.81712]
[1742801236710,10.2945,2076.3,2075.9,4.81709]
[1742801237096,5.4782,2076.3,2076.0,4.81684]
[1742801237314,10.2945,2076.3,2075.9,9.63415]
[1742801237513,10.2945,2076.3,2075.9,4.81706]
[1742801238220,10.2945,2076.3,2075.9,5.84774746]
[1742801239209,10.2945,2076.3,2076.0,4.81692]
[1742801239816,5.4782,2076.3,2076.0,4.81692]
[1742801240016,5.4782,2076.3,2076.0,9.63375]
[1742801241840,5.4782,2076.3,2075.9,6.65525746]
[1742801242017,5.4782,2076.3,2076.0,5.54962621]
[1742801242416,5.4782,2076.3,2076.0,4.81686]
[1742801244426,5.4782,2076.3,2076.0,4.81693]
[1742801247398,10.29449,2076.3,2076.0,4.81693]
[1742801247825,10.29449,2076.3,2075.8,5.4896646]
[1742801247826,4.81654,2076.2,2075.8,5.4896646]
[1742801247987,0.7984,2076.0,2075.7,4.81764]
[1742801248187,5.61538,2076.0,2075.6,4.81777]
[1742801248711,0.7984,2076.0,2075.7,4.8176]
[1742801248917,0.7984,2076.2,2075.9,4.81707]
[1742801249223,0.7984,2076.2,2076.0,5.298637]
[1742801249414,0.7984,2076.2,2076.0,4.81693]
[1742801249925,0.7984,2076.2,2075.8,5.6344]
[1742801250241,5.61498,2076.2,2075.8,5.6344]
[1742801250597,5.61498,2076.2,2075.8,5.63431]
[1742801251010,5.61498,2076.2,2075.8,4.81731]
[1742801251721,5.61494,2076.2,2075.8,4.81727]
[1742801251926,5.61494,2076.2,2075.8,5.430737]
[1742801252723,5.61494,2076.2,2075.7,4.81764]
[1742801252924,4.81681,2076.1,2075.7,4.81764]
[1742801253127,9.63373,2076.1,2075.7,4.81764]
[1742801253535,4.81681,2076.1,2075.7,4.81764]
[1742801256441,9.63373,2076.1,2075.7,4.81764]
[1742801256626,4.81681,2076.1,2075.7,4.81764]
[1742801256825,4.81672,2076.1,2075.7,5.836191]
[1742801257308,9.63362,2076.1,2075.7,5.836191]
[1742801257513,4.81672,2076.1,2075.7,5.836191]
[1742801257845,4.81696,2076.0,2075.7,5.836191]
[1742801258349,0.7598,2075.9,2075.7,5.836191]
[1742801258714,0.7598,2075.9,2075.8,0.6386191]
[1742801262421,0.7598,2075.9,2075.3,0.98132869]
[1742801262657,4.81776,2075.7,2075.3,4.81839]
[1742801262831,5.57728,2075.8,2075.4,4.8183]
[1742801264049,5.57728,2075.8,2075.4,4.8182]
[1742801264050,5.57722,2075.8,2075.4,4.8182]
[1742801264354,5.57722,2075.8,2075.4,9.63635]
[1742801264756,0.7598,2075.8,2075.5,4.81803]
[1742801264945,0.7598,2075.8,2075.5,5.836648]
[1742801265967,9.48031,2075.9,2075.6,4.8177]
[1742801265968,4.663,2075.9,2075.6,4.8177]
[1742801266635,9.48021,2075.9,2075.6,4.8177]
[1742801266869,9.48021,2075.9,2075.5,6.659858]
[1742801267871,9.48021,2075.9,2075.5,5.836658]
[1742801268368,14.2976,2075.9,2075.5,5.836658]
[1742801268569,14.2976,2075.9,2075.5,4.81804]
[1742801268732,9.48021,2075.9,2075.5,4.81804]
[1742801268933,15.05689,2076.0,2075.5,4.81794]
[1742801269281,10.23977,2076.0,2075.6,4.81782]
[1742801269637,10.23987,2076.0,2075.6,10.599126]
[1742801269846,10.23987,2076.0,2075.6,5.781346]
[1742801270170,10.23987,2076.0,2075.6,4.81777]
[1742801273283,15.05705,2076.0,2075.6,4.81777]
[1742801273451,4.81721,2075.9,2075.6,4.81777]
[1742801275494,4.81752,2075.8,2075.4,4.81833]
[1742801275772,5.62823,2075.7,2075.3,5.64155]
[1742801275936,5.62823,2075.7,2075.3,6.687587]
[1742801277582,10.44607,2075.7,2075.3,6.687587]
[1742801277796,5.62823,2075.7,2075.3,6.687587]
[1742801278765,0.8105,2075.9,2075.5,4.81796]
[1742801278976,0.8105,2075.9,2075.6,4.81786]
[1742801279972,0.8105,2075.9,2075.5,9.6359]
[1742801280171,5.62772,2075.9,2075.5,5.97327183]
[1742801280369,5.62772,2075.9,2075.5,4.81794]
[1742801280579,5.62772,2075.9,2075.5,9.6359]
[1742801280883,9.48004,2076.0,2075.6,5.59447]
[1742801281656,5.4725,2076.1,2075.7,4.81743]
[1742801281985,10.28932,2076.1,2075.7,4.81743]
[1742801282555,10.28932,2076.1,2075.7,9.63499]
[1742801282774,10.28932,2076.1,2075.7,4.81743]
[1742801284290,4.81697,2076.0,2075.6,5.59445]
[1742801284585,4.81697,2076.0,2075.6,6.635706]
[1742801285280,4.81697,2076.0,2075.6,11.453406]
[1742801285468,4.81697,2076.0,2075.6,6.635556]
[1742801285670,4.81697,2076.0,2075.6,5.5943]
[1742801285850,10.28928,2076.1,2075.6,5.5943]
[1742801286052,10.28928,2076.1,2075.7,4.81756]
[1742801287592,15.10619,2076.1,2075.7,4.81756]
[1742801287776,10.28928,2076.1,2075.7,4.81756]
[1742801288102,4.81695,2076.0,2075.7,4.81756]
[1742801288499,4.8172,2075.9,2075.6,5.59445]
[1742801288699,4.81702,2076.0,2075.6,5.59445]
[1742801289294,9.63416,2076.0,2075.6,5.59445]
[1742801289479,4.81729,2075.9,2075.6,0.55]
[1742801290205,4.81771,2075.7,2075.4,0.778]
[1742801290492,4.81771,2075.7,2075.4,4.81831]
[1742801290669,5.61476,2075.8,2075.4,4.81831]
[1742801291672,10.43236,2075.8,2075.4,4.81831]
[1742801291884,5.61476,2075.8,2075.4,4.81831]
[1742801292588,0.7973,2075.8,2075.4,4.81818]
[1742801292799,4.8172,2075.9,2075.5,5.59603]
[1742801294397,4.81695,2076.0,2075.6,4.81773]
[1742801294894,10.27602,2076.1,2075.6,4.8177]
[1742801295097,15.09287,2076.1,2075.7,4.81762]
[1742801295302,4.81696,2076.0,2075.6,4.8177]
[1742801295592,9.63411,2076.0,2075.6,4.8177]
[1742801295797,4.81696,2076.0,2075.6,9.63536]
[1742801295983,4.81696,2076.0,2075.6,4.81766]
[1742801297495,10.27503,2076.1,2075.8,4.81733]
[1742801297800,10.27503,2076.1,2075.7,4.81764]
[1742801298093,15.09196,2076.1,2075.7,4.81764]
[1742801298889,10.27503,2076.1,2075.6,4.81787]
[1742801299109,5.17404904,2076.8,2076.0,4.81685]
[1742801299295,0.7973,2077.1,2076.8,4.81509]
[1742801299594,0.7973,2077.1,2077.0,4.81463]
[1742801299795,0.7973,2077.1,2076.8,9.62998]
[1742801299973,3.7973,2077.1,2076.8,9.62998]
[1742801300173,3.7973,2077.1,2076.8,4.81499]
[1742801300383,0.7973,2077.1,2076.8,9.62997]
[1742801300586,9.47498,2077.3,2076.9,5.59264]
[1742801300783,4.661,2077.3,2076.9,5.59264]
[1742801301178,4.661,2077.3,2077.0,4.81458]
[1742801301378,0.7973,2077.4,2077.1,4.81425]
[1742801301591,5.4583,2077.4,2077.1,4.81425]
[1742801302391,7.81348,2077.5,2077.1,1.040688]
[1742801302582,4.66,2077.4,2077.1,5.855038]
[1742801303709,4.66,2077.4,2077.1,5.854998]
[1742801304517,4.66,2077.4,2077.2,4.81402]
[1742801304689,0.7971,2077.8,2077.6,4.81307]
[1742801305014,0.122526,2077.9,2077.7,4.81291]
[1742801305217,0.122526,2077.9,2077.2,6.11788]
[1742801305218,0.122526,2077.9,2077.5,4.81347]
[1742801305393,4.935286,2077.9,2077.4,5.36364]
[1742801305600,9.748046,2077.9,2077.4,6.456765]
[1742801305795,14.407046,2077.9,2077.4,11.270305]
[1742801306007,9.594286,2077.9,2077.5,4.81346]
[1742801306314,4.81283,2077.8,2077.4,10.720235]
[1742801306628,4.81283,2077.8,2077.2,0.7539]
[1742801306629,5.61027,2077.7,2077.3,4.81387]
[1742801306794,10.42349,2077.7,2077.3,4.81387]
[1742801306998,4.81324,2077.6,2077.3,4.81387]
[1742801307183,0.7971,2077.7,2077.3,5.9560108]
[1742801307389,4.81279,2077.8,2077.4,4.81367]
[1742801307905,10.391206,2077.9,2077.4,4.8137]
[1742801308299,5.578626,2077.9,2077.6,4.81324]
[1742801308784,10.391186,2077.9,2077.5,4.81345]
[1742801310321,10.391186,2077.9,2077.5,5.89039008]
[1742801310721,5.732186,2077.9,2077.5,5.89039008]
[1742801310918,10.390186,2077.9,2077.5,5.89039008]
[1742801313544,5.577626,2077.9,2077.6,4.81319]
[1742801314042,10.390176,2077.9,2077.6,4.81319]
[1742801314346,0.00430378,2077.7,2077.5,5.89035008]
[1742801314741,0.00430378,2077.7,2077.5,1.07694008]
[1742801314944,0.00430378,2077.7,2077.4,4.81368]
[1742801315742,0.00430378,2077.7,2077.4,9.62715]
[1742801315945,4.81745378,2077.7,2077.3,1.1422508]
[1742801316242,4.81412,2077.3,2076.9,4.81472]
[1742801316449,4.81412,2077.3,2076.9,4.8147]
[1742801316661,9.47073,2077.4,2077.0,4.81449]
[1742801316949,9.47073,2077.4,2077.0,5.85761335]
[1742801317242,14.28456,2077.4,2077.0,5.85761335]
[1742801317414,9.47073,2077.4,2077.0,5.85761335]
[1742801317613,4.81394,2077.3,2077.0,5.85761335]
[1742801317809,9.47073,2077.4,2077.0,5.85761335]
[1742801318018,14.28465,2077.4,2077.0,4.81449]
[1742801318254,4.81398,2077.3,2077.0,4.81449]
[1742801318556,4.81398,2077.3,2076.9,4.81479]
[1742801319123,0.7854,2077.2,2076.9,4.81479]
[1742801319651,4.81398,2077.3,2076.9,4.81473]
[1742801319857,4.81417,2077.2,2076.9,4.81473]
[1742801320025,4.81417,2077.2,2076.8,5.56894]
[1742801320522,4.814,2077.3,2076.9,4.81486]
[1742801320934,4.81419,2077.2,2076.8,6.662222]
[1742801321139,4.81464,2077.0,2076.7,4.81529]
[1742801321360,5.60004,2077.0,2076.6,5.6366]
[1742801321521,4.81441,2077.1,2076.7,4.81531]
[1742801321721,4.81441,2077.1,2076.7,5.90865118]
[1742801321923,4.656,2077.2,2076.8,4.8151]
[1742801322162,4.656,2077.2,2077.0,4.8145]
[1742801322339,4.656,2077.2,2077.1,4.8144]
[1742801323259,4.656,2077.2,2077.0,5.63566]
[1742801323560,4.656,2077.2,2077.1,4.8144]
[1742801324153,17.28316,2077.5,2077.1,4.8144]
[1742801324558,12.46948,2077.5,2077.1,4.8144]
[1742801324960,12.46948,2077.5,2077.0,6.680711]
[1742801325159,4.81387,2077.4,2077.0,6.680711]
[1742801325365,9.6278,2077.4,2077.0,5.63566]
[1742801326254,4.81387,2077.4,2077.0,5.63562]
[1742801327253,9.62779,2077.4,2077.0,5.63562]
[1742801327452,4.814,2077.3,2076.9,4.81479]
[1742801327651,5.5994,2077.3,2076.9,4.81479]
[1742801327853,4.81425,2077.2,2076.9,4.81486]
[1742801328165,4.81428,2077.2,2076.8,5.63597]
[1742801328342,0.7854,2077.0,2076.3,1.77690647]
[1742801328541,0.7854,2077.0,2076.4,4.81593]
[1742801328542,4.8152,2076.8,2076.4,4.81593]
[1742801330687,9.63048,2076.8,2076.4,4.81593]
[1742801332270,4.8152,2076.8,2076.4,4.81593]
[1742801332665,0.76,2076.7,2076.4,4.81593]
[1742801332842,0.76,2076.7,2076.4,5.861257]
[1742801334379,5.57534,2076.7,2076.4,5.861257]
[1742801337271,5.57534,2076.7,2076.4,1.045327]
[1742801337776,5.46437298,2076.7,2076.1,0.35344328]
[1742801337948,4.81633,2076.3,2075.9,4.81699]
[1742801338148,4.81592,2076.5,2076.1,4.81668]
[1742801338343,5.57561,2076.6,2076.2,4.8164]
[1742801338547,4.81579,2076.5,2076.1,4.81665]
[1742801338841,4.81605,2076.4,2076.0,9.63373]
[1742801339046,4.81605,2076.4,2076.0,9.99193397]
[1742801339655,4.81605,2076.4,2076.0,5.17504397]
[1742801339856,4.81605,2076.4,2076.0,5.83574337]
[1742801340784,4.81605,2076.4,2076.1,4.81669]
[1742801342378,4.81585,2076.5,2076.1,4.81669]
[1742801342879,4.81585,2076.5,2076.1,4.81659]
[1742801344985,9.63184,2076.5,2076.1,4.81659]
[1742801345191,4.81607,2076.4,2076.0,5.17508397]
[1742801345985,4.81607,2076.4,2076.0,9.99185397]
[1742801346149,5.57577,2076.6,2076.2,4.81631]
[1742801346356,5.57557,2076.6,2076.2,4.81631]
[1742801348493,4.8158,2076.5,2076.2,4.81631]
[1742801349695,5.57557,2076.6,2076.2,5.89884769]
[1742801350094,10.39135,2076.6,2076.2,5.89884769]
[1742801350264,10.39135,2076.6,2076.2,4.81631]
[1742801352601,4.81579,2076.5,2076.2,4.81631]
[1742801355098,0.00430378,2076.8,2076.5,4.81579]
[1742801355263,0.00430378,2076.8,2076.3,0.7636]
[1742801355613,0.00430378,2076.8,2076.2,4.81644]
[1742801355614,5.60225,2076.6,2076.2,4.81644]
[1742801355783,4.81591,2076.5,2076.1,5.58025]
[1742801355969,4.81591,2076.5,2076.2,4.81649]
[1742801356800,5.6022,2076.6,2076.2,4.81649]
[1742801357703,10.2582,2076.6,2076.2,4.81649]
[1742801358470,15.07397,2076.6,2076.2,4.81649]
[1742801358866,3.04837298,2076.5,2076.0,4.81694]
[1742801359082,4.8166,2076.2,2075.8,4.81723]
[1742801359278,4.81686,2076.1,2075.6,4.81786]
[1742801359597,5.60365,2076.0,2075.6,4.81786]
[1742801359802,4.81719,2075.9,2075.6,4.81786]
[1742801360096,10.42076,2076.0,2075.6,4.81786]
[1742801360467,5.60365,2076.0,2075.6,4.81786]
[1742801360878,10.4208,2076.0,2075.6,4.81786]
[1742801361186,4.81721,2075.9,2075.5,5.58162]
[1742801361511,5.60365,2076.0,2075.6,4.81787]
[1742801361718,5.60365,2076.0,2075.6,4.81772]
[1742801362085,4.81719,2075.9,2075.5,5.95232751]
[1742801362711,5.60359,2076.0,2075.5,5.95217751]
[1742801363038,5.60359,2076.0,2075.6,4.81776]
[1742801365182,4.81719,2075.9,2075.6,4.81776]
[1742801365381,4.81719,2075.9,2075.4,4.81834]
[1742801365382,0.7691,2075.7,2075.4,4.81834]
[1742801365602,4.81801,2075.6,2075.1,5.58587]
[1742801365898,4.81812,2075.5,2075.1,4.81897]
[1742801366275,4.81791,2075.6,2075.2,4.81881]
[1742801366907,4.81812,2075.5,2075.1,5.859483]
[1742801367094,9.63597,2075.6,2075.1,10.678433]
[1742801367296,0.7691,2075.4,2075.0,4.81923]
[1742801367606,0.7691,2075.4,2074.9,5.5864]
[1742801367607,4.81871,2075.3,2074.9,4.8195]
[1742801367824,4.81903,2075.2,2074.7,5.58668]
[1742801368116,4.81908,2075.1,2074.7,5.58668]
[1742801368321,4.81928,2075.0,2074.7,5.58668]
[1742801368528,4.81908,2075.1,2074.7,5.58668]
[1742801369436,5.58838,2075.0,2074.6,4.82015]
[1742801369603,4.81951,2074.9,2074.5,10.40747]
[1742801370537,4.81951,2074.9,2074.5,11.94983654]
[1742801371397,4.81951,2074.9,2074.6,0.09114616]
[1742801372531,10.24543,2075.0,2074.6,4.91133616]
[1742801372737,0.7691,2075.3,2074.9,0.7669]
[1742801372947,3.0,2075.3,2075.0,4.81908]
[1742801373105,3.0,2075.3,2075.0,4.9231171]
[1742801374201,5.58726,2075.5,2075.1,4.81887]
[1742801374408,10.24526,2075.5,2075.2,0.10365324]
[1742801374602,4.81845,2075.4,2075.2,0.10365324]
[1742801374933,4.81845,2075.4,2075.3,0.10283764]
[1742801375429,4.81845,2075.4,2075.3,0.10235794]
[1742801375634,4.81845,2075.4,2075.0,4.81908]
[1742801375822,4.81845,2075.4,2075.1,0.10235794]
[1742801378213,10.24525,2075.5,2075.1,4.92139794]
[1742801378404,10.2454,2075.5,2075.1,5.73681794]
[1742801378607,5.62435,2075.7,2075.3,4.81844]
[1742801378818,3.0,2075.7,2075.4,4.81817]
[1742801379011,9.47459,2075.8,2075.5,0.1017344]
[1742801379334,9.47459,2075.8,2075.4,4.81817]
[1742801379822,9.47453,2075.8,2075.4,4.81817]
[1742801380022,3.8067,2075.9,2075.6,4.81779]
[1742801380224,4.81709,2076.0,2075.6,4.81779]
[1742801380225,9.47409,2076.0,2075.6,4.81779]
[1742801380540,9.47409,2076.0,2075.7,0.1017344]
[1742801381511,0.8067,2076.1,2075.8,4.81731]
[1742801381712,9.47363,2076.2,2075.8,4.81731]
[1742801381919,9.47365,2076.2,2075.9,0.09722584]
[1742801382119,4.81695,2076.0,2075.9,0.09722584]
[1742801382310,0.8067,2075.9,2075.6,4.81771]
[1742801382642,4.81695,2076.0,2075.7,0.09722584]